Cogmind - Beta 15 @@@ ROGUE MODE // 2025.08.01 @ 15:28:26 Player: Mogwok Wargfriend Result: Destroyed by P-80 Master with Gamma Rifle Performance ------------- Evolutions (9) 4500 Regions Visited (28) 5600 Robots Destroyed (265) 1325 Value Destroyed (6521) 6521 Prototype IDs (70) 1400 Alien Tech Used (2) 400 Bonus (3417) 3417 TOTAL SCORE: 23163 Bonus ------- Triggered Max Security 1000 High Alert Combat Kills 69 Follower Combat Kills 623 Entered DSFs 500 Aligned with FarCom 300 Met Data Miner 300 Met Warlord at Base 500 MAIN.C Attacked Warlord 500 Friendly Fire -375 Cogmind --------- Core Integrity 0/1600 Matter 298/300 Energy 99/100 System Corruption 8% Temperature Cool (0) Movement Core (50) Location -1/Access Parts ------- > --- POWER (2) -------- (None) > --- PROPULSION (6) --- (None) > --- UTILITY (15) ----- Graphene Brace Hacking Suite Improved System Shield > --- WEAPON (2) ------- (None) > --- INVENTORY (5) ---- Advanced Energy Well (117) Advanced ECM Suite Advanced Component Analysis Suite Peak State ------------ > --- POWER ------------ Light Quantum Reactor > --- PROPULSION ------- Xenon Bombardment Thruster Improved Cesium-ion Thruster Improved Cesium-ion Thruster Improved Diametric Drive Improved Diametric Drive > --- UTILITY ---------- Advanced Power Amplifier Advanced Energy Well Advanced Weight Redist. System Advanced Signal Interpreter Improved Transmission Jammer Experimental Transmission Jammer Reaction Control System Advanced Cloaking Device Improved Medium Armor Plating Graphene Brace Hacking Suite Improved Hacking Suite Experimental Hacking Suite Improved System Shield > --- WEAPON ----------- Shock Maul Phasing Sabre > --- INVENTORY -------- Light Quantum Reactor Improved Cesium-ion Thruster Improved Cesium-ion Thruster System Shield Vortex Lance [Rating: 139] Favorites ----------- Power Enhanced Nuclear Core Engine Ion Engine Power Core Enhanced Nuclear Core Reactor Light Quantum Reactor Propulsion Improved Cesium-ion Thruster Treads Light Treads Leg Carbon-fiber Leg Wheel Wheel Flight Unit Improved Cesium-ion Thruster Utility Hacking Suite Device Improved Heat Sink Storage Large Storage Unit Processor Improved Signal Interpreter Hackware Hacking Suite Protection Improved Light Armor Plating Weapon Beam Cannon Energy Gun Beam Rifle Energy Cannon Beam Cannon Ballistic Gun Light Assault Rifle Launcher Precision Grenade Launcher Special Weapon Plasma Cutter Impact Weapon Great Maul Slashing Weapon Katana Piercing Weapon Makeshift Spear Special Melee Weapon Datajack Build | -11 -10 -9 -9 -9 -8 -8 -7 -7 -6 -6 -6 -6 -5 -5 -5 -5 -5 -4 -4 -4 -4 -4 -3 -3 -3 -2 -2 -1 ------- Run | Yrd Mat Mat Min Exi Min Mat Fac Sto Fac Low Low Dat Pro Fac Upp Upp War Pro Fac Upp Upp Zhi Pro Res DSF Res Qua Acc Slots Evolved 18 | . . 2 . . . 2 2 . 2 . . . . 2 . . . . 2 . . . . 2 . 2 . 2 Power 1 | . . . . . . . . . . . . . . . . . . . . . . . . 1 . . . . Propulsion 4 | . . . . . . . 1 . 1 . . . . . . . . . 1 . . . . . . . . 1 Utility 13 | . . 2 . . . 2 1 . 1 . . . . 2 . . . . 1 . . . . 1 . 2 . 1 Weapon . | . . . . . . . . . . . . . . . . . . . . . . . . . . . . . Parts Attached 237 | 9 13 23 5 1 4 15 41 30 16 2 . . . 14 1 5 4 . 20 . . 2 . 3 5 11 3 10 Power 20 | 1 2 2 . . 1 2 2 1 1 1 . . . 1 . . . . 3 . . . . . 1 1 . 1 Engine 11 | 1 2 2 . . 1 1 . 1 1 1 . . . . . . . . 1 . . . . . . . . . Core 6 | . . . . . . 1 2 . . . . . . 1 . . . . 1 . . . . . 1 . . . Reactor 3 | . . . . . . . . . . . . . . . . . . . 1 . . . . . . 1 . 1 Propulsion 61 | 4 5 8 3 . 1 4 10 8 3 . . . . . . 2 1 . 5 . . . . . . 2 2 3 Treads 3 | . . 1 . . . . 1 1 . . . . . . . . . . . . . . . . . . . . Leg 5 | . . . 1 . . 1 . . . . . . . . . . . . 2 . . . . . . 1 . . Wheel 32 | 4 5 6 2 . 1 3 7 4 . . . . . . . . . . . . . . . . . . . . Hover . | . . . . . . . . . . . . . . . . . . . . . . . . . . . . . Flight 21 | . . 1 . . . . 2 3 3 . . . . . . 2 1 . 3 . . . . . . 1 2 3 Utility 112 | 2 3 8 1 1 1 6 20 11 10 1 . . . 12 . 2 2 . 11 . . 2 . 3 4 6 1 5 Device 53 | 1 2 2 . . . 1 8 7 4 . . . . 5 . 1 1 . 8 . . 1 . 2 1 4 1 4 Storage 11 | 1 1 1 . 1 . 1 . 2 1 . . . . 1 . . . . . . . 1 . . . 1 . . Processor 14 | . . . . . . 2 5 . 1 1 . . . 3 . 1 . . 1 . . . . . . . . . Hackware 16 | . . 1 . . . 1 1 . 4 . . . . 2 . . 1 . 1 . . . . 1 3 . . 1 Protection 18 | . . 4 1 . 1 1 6 2 . . . . . 1 . . . . 1 . . . . . . 1 . . Artifact . | . . . . . . . . . . . . . . . . . . . . . . . . . . . . . Weapon 44 | 2 3 5 1 . 1 3 9 10 2 . . . . 1 1 1 1 . 1 . . . . . . 2 . 1 Energy Gun 16 | 1 1 4 . . 1 1 4 4 . . . . . . . . . . . . . . . . . . . . Energy Cannon 9 | . 1 1 . . . 2 4 1 . . . . . . . . . . . . . . . . . . . . Ballistic Gun 2 | 1 1 . . . . . . . . . . . . . . . . . . . . . . . . . . . Ballistic Cannon . | . . . . . . . . . . . . . . . . . . . . . . . . . . . . . Launcher 2 | . . . . . . . . 2 . . . . . . . . . . . . . . . . . . . . Special Weapon 2 | . . . . . . . 1 . . . . . . . . . . . . . . . . . . 1 . . Impact Weapon 5 | . . . . . . . . 2 1 . . . . 1 . . . . 1 . . . . . . . . . Slashing Weapon 2 | . . . . . . . . . 1 . . . . . . 1 . . . . . . . . . . . . Piercing Weapon 4 | . . . 1 . . . . . . . . . . . . . 1 . . . . . . . . 1 . 1 Special Melee Weapon 2 | . . . . . . . . 1 . . . . . . 1 . . . . . . . . . . . . . Unidentified Prototypes 30 | . . 3 . . . 1 4 8 . . . . . 1 . . 3 . 4 . . 2 . . . 2 2 . Parts Lost 76 | . 4 9 2 . 5 5 12 6 4 . . . . 4 . . . . 1 . . . . . . . 5 19 Power 6 | . 1 1 . . 1 . . . . . . . . . . . . . 1 . . . . . . . . 2 Propulsion 28 | . 2 5 1 . 2 2 5 2 1 . . . . . . . . . . . . . . . . . . 8 Utility 32 | . 1 2 1 . 1 2 5 2 3 . . . . 4 . . . . . . . . . . . . 5 6 Weapon 10 | . . 1 . . 1 1 2 2 . . . . . . . . . . . . . . . . . . . 3 Highest Loss Streak 15 | . 4 3 2 . 5 2 5 6 2 . . . . 4 . . . . 1 . . . . . . . 5 15 To Critical Strikes . | . . . . . . . . . . . . . . . . . . . . . . . . . . . . . Average Backups 10 | 6 10 14 14 15 13 14 13 12 4 5 5 5 5 4 5 5 4 5 4 5 5 5 5 4 5 4 5 2 Power 1 | . . 1 2 2 1 2 2 1 . 1 1 1 1 . 1 1 1 1 . 1 1 1 1 1 1 1 1 . Propulsion 2 | 4 2 . 1 1 1 1 1 2 3 4 4 4 4 4 4 3 3 3 2 2 2 2 2 2 2 2 2 . Utility 3 | . 3 4 5 5 5 4 5 5 . . . . . . . . . . . 1 1 1 1 . 1 . 1 . Weapon 3 | . 3 7 6 6 5 6 4 2 . . . . . . . . . 1 1 1 1 1 1 1 1 1 1 . Tool/Special . | . . . . . . . . . . . . . . . . . . . . . . . . . . . . . Unused Backups 50 | 3 4 7 2 . 1 5 11 10 2 . . . . . . . 2 . 1 . . . . . . 1 1 . Power 8 | . . . . . . 2 2 3 . . . . . . . . . . . . . . . . . 1 . . Propulsion 15 | 3 2 2 . . 1 1 . 4 1 . . . . . . . 1 . . . . . . . . . . . Utility 13 | . 2 1 1 . . . 5 2 1 . . . . . . . . . 1 . . . . . . . . . Weapon 13 | . . 4 1 . . 2 4 1 . . . . . . . . 1 . . . . . . . . . . . Tool/Special 1 | . . . . . . . . . . . . . . . . . . . . . . . . . . . 1 . Average Slot Usage (%) 95 | . 99 95 99 100 92 95 92 89 98 100 100 100 100 98 100 100 100 100 96 100 100 99 100 90 91 95 93 70 Engine 4 | . 14 10 11 11 11 4 1 1 4 6 6 6 6 3 . . . . 3 . . . . . . . . . Core 3 | . . . . . . 4 5 4 1 . . . . 1 5 5 5 5 1 5 5 5 5 4 4 1 . . Wheel 9 | . 28 15 20 22 15 13 14 11 . . . . . . . . . . . . . . . . . . . . Flight 9 | . . . . . . . . 4 25 26 26 26 26 23 23 23 23 23 23 26 26 26 26 23 23 20 20 20 Device 14 | . 13 10 11 11 11 6 8 12 23 20 20 20 20 22 23 23 23 23 22 21 21 22 26 26 23 26 25 15 Storage 5 | . 14 11 11 11 11 9 7 5 . . . . . . . . . . . . . . . . . . 3 4 Processor 6 | . . . . . . 9 7 11 8 11 13 13 13 11 11 11 8 5 5 5 5 5 5 4 4 4 4 3 Hackware 14 | . . 8 11 11 11 12 17 7 12 14 13 13 13 15 17 17 19 23 24 26 26 23 21 16 19 20 16 14 Protection 8 | . . 10 10 11 11 13 10 12 5 6 6 6 6 4 5 4 5 5 5 5 5 5 5 4 4 6 7 . Energy Gun 3 | . 14 10 10 11 10 4 1 2 . . . . . . . . . . . . . . . . . . . . Energy Cannon 6 | . 6 10 11 11 11 13 12 9 . . . . . . . . . . . . . . . . . . . . Impact Weapon 2 | . . . . . . . . 1 10 6 6 6 6 4 5 5 4 5 4 5 5 5 5 4 4 4 4 3 Slashing Weapon 1 | . . . . . . . . . 1 6 6 6 6 5 5 5 5 5 5 5 5 5 5 4 4 4 4 3 Peak Build Rating 139 | 7 11 19 20 17 19 31 45 55 65 62 62 62 62 72 72 74 90 85 109 107 107 111 111 115 119 132 139 118 Average Rating 49 | 6 9 15 16 16 18 24 40 43 62 61 62 62 62 67 69 70 78 85 98 107 107 108 111 108 111 123 129 101 On Entrance 65 | . 7 10 16 16 17 19 25 44 55 60 62 62 62 62 69 69 72 85 85 107 107 107 111 111 108 119 132 97 Naked Turns . | . . . . . . . . . . . . . . . . . . . . . . . . . . . . . Heaviest Build 56 | 13 32 38 40 36 36 37 52 56 24 24 24 24 24 25 18 20 21 20 28 27 27 30 30 31 35 43 41 46 Greatest Support 47 | 20 30 32 26 20 22 22 40 44 32 26 26 26 26 26 26 21 34 34 35 34 34 34 34 34 41 41 41 47 Greatest Overweight (x) 11 | 1 4 11 3 3 2 3 3 1 2 . . . . . . . . . . . . . . . 1 1 1 1 Average Overweight (x) . | . . 2 1 2 1 1 . . . . . . . . . . . . . . . . . . . . . . Largest Inventory Capacity 15 | 8 15 15 15 15 15 15 15 15 5 5 5 5 5 5 5 5 5 5 5 5 5 5 5 5 5 5 5 5 Average Capacity 10 | 7 10 15 15 15 15 15 15 13 5 5 5 5 5 5 5 5 5 5 5 5 5 5 5 5 5 5 5 5 Most Carried 15 | 8 15 15 15 15 15 15 15 15 5 5 5 5 5 5 5 5 5 5 5 5 5 5 5 5 5 5 5 5 Average Carried 10 | 6 10 14 14 15 13 14 14 12 4 5 5 5 5 4 5 4 4 5 4 5 5 5 5 4 5 4 4 2 Final Capacity 15 | 8 15 15 15 15 15 15 15 5 5 5 5 5 5 5 5 5 5 5 5 5 5 5 5 5 5 5 5 5 Final Carried 15 | 8 15 15 15 15 15 15 15 5 5 5 5 5 5 5 5 5 5 5 5 5 5 5 5 5 5 5 4 3 Class Distribution -------------------- 28% | Scavenger-Mutant 20% | Hacker-Mutant 15% | Hacker-Ninja 10% | Mutant 7% | Hacker-Sprinter 6% | Hacker-Scout 5% | Scout 3% | Wizard-Ninja Dominant Class ---------------- Scavenger-Mutant | -10/Materials Scavenger-Mutant | -9/Materials Scavenger-Mutant | -9/Mines Scavenger-Mutant | -9/Exiles Scavenger-Mutant | -8/Mines Scavenger-Mutant | -8/Materials Hacker-Mutant | -7/Factory Mutant | -7/Storage Hacker-Scout | -6/Factory Hacker-Sprinter | -6/Lower Caves Hacker-Sprinter | -6/Lower Caves Hacker-Sprinter | -6/Data Miner Hacker-Sprinter | -5/Proximity Caves Hacker-Ninja | -5/Factory Hacker-Ninja | -5/Upper Caves Hacker-Ninja | -5/Upper Caves Hacker-Sprinter | -5/Warlord Hacker-Sprinter | -4/Proximity Caves Wizard-Ninja | -4/Factory Wizard-Sprinter | -4/Upper Caves Wizard-Sprinter | -4/Upper Caves Wizard-Sprinter | -4/Zhirov Wizard-Sprinter | -3/Proximity Caves Hacker-Ninja | -3/Research Hacker-Sprinter | -3/DSF Hacker-Ninja | -2/Research Hacker-Sprinter | -2/Quarantine Hacker-Sprinter | -1/Access Resources | -11 -10 -9 -9 -9 -8 -8 -7 -7 -6 -6 -6 -6 -5 -5 -5 -5 -5 -4 -4 -4 -4 -4 -3 -3 -3 -2 -2 -1 ----------- Run | Yrd Mat Mat Min Exi Min Mat Fac Sto Fac Low Low Dat Pro Fac Upp Upp War Pro Fac Upp Upp Zhi Pro Res DSF Res Qua Acc Matter Collected 4211 | 337 168 329 74 . 42 187 844 641 226 103 8 . 24 221 49 79 20 60 304 20 . . 50 . . 310 48 67 Remotely . | . . . . . . . . . . . . . . . . . . . . . . . . . . . . . Salvage Created 9928 | 318 589 1430 174 . 171 1570 2028 1559 557 . . . 173 466 . . . . 413 69 49 . 8 28 . 207 41 78 Parts 485 | 24 29 86 12 . 13 98 95 70 17 . . . . 25 . . . . 16 . . . . . . . . . Haulers Intercepted 17 | . 2 6 . . . 2 2 5 . . . . . . . . . . . . . . . . . . . . Recyclers Shooed 6 | . 1 . . . . 2 3 . . . . . . . . . . . . . . . . . . . . . Parts Field Recycled . | . . . . . . . . . . . . . . . . . . . . . . . . . . . . . Retrieved Matter . | . . . . . . . . . . . . . . . . . . . . . . . . . . . . . Parts Self-Destructed . | . . . . . . . . . . . . . . . . . . . . . . . . . . . . . Prevented . | . . . . . . . . . . . . . . . . . . . . . . . . . . . . . Kills | -11 -10 -9 -9 -9 -8 -8 -7 -7 -6 -6 -6 -6 -5 -5 -5 -5 -5 -4 -4 -4 -4 -4 -3 -3 -3 -2 -2 -1 ------- Run | Yrd Mat Mat Min Exi Min Mat Fac Sto Fac Low Low Dat Pro Fac Upp Upp War Pro Fac Upp Upp Zhi Pro Res DSF Res Qua Acc Combat Hostiles Destroyed 106 | . 7 26 2 . 4 16 23 15 5 . . . 1 2 . . . . 3 . 1 . 1 . . . . . Melee 8 | . . . . . . . . . 2 . . . . 2 . . . . 3 . 1 . . . . . . . Guns 19 | . 5 6 . . 1 5 2 . . . . . . . . . . . . . . . . . . . . . Cannons 69 | . 2 20 2 . 3 10 20 12 . . . . . . . . . . . . . . . . . . . . Classes Destroyed 18 | 3 5 4 1 . . 1 2 . . . . . 1 . . . . . . . . . 1 . . . . . Worker 33 | 2 2 . 1 . 3 8 5 6 4 . . . . 1 . . . . 1 . . . . . . . . . Builder 27 | . . 3 1 . . 5 7 4 2 . . . . 3 . . . . 2 . . . . . . . . . Tunneler 13 | 9 . . 2 . . 2 . . . . . . . . . . . . . . . . . . . . . . Hauler 17 | . 2 6 . . . 2 2 5 . . . . . . . . . . . . . . . . . . . . Recycler 18 | 1 2 1 . . 1 3 4 2 1 . . . . 1 . . . . 1 . . . . . . 1 . . Minesweeper 1 | . . . . . . . . . . . . . 1 . . . . . . . . . . . . . . . Mechanic 5 | . . 1 . . . 1 . . 1 . . . . . . . . . . . . . . . . 1 . 1 Operator 10 | . 2 2 . . . 3 1 1 . . . . . 1 . . . . . . . . . . . . . . Drone 1 | . . . . . . . . . . . . . . . . . . . . . . . 1 . . . . . Watcher 33 | . 3 3 . . . 4 6 2 3 . . . . 6 . . . . 2 . . . . 1 . 1 1 1 Swarmer 23 | . . 12 . . 4 3 4 . . . . . . . . . . . . . . . . . . . . . Grunt 27 | . 5 6 1 . . 6 4 5 . . . . . . . . . . . . . . . . . . . . Brawler 1 | . . . . . . . 1 . . . . . . . . . . . . . . . . . . . . . Duelist 1 | . . . 1 . . . . . . . . . . . . . . . . . . . . . . . . . Sentry 27 | . . 8 . . . 5 4 7 2 . . . . . . . . . 1 . . . . . . . . . Hunter 5 | . . . . . . 2 3 . . . . . . . . . . . . . . . . . . . . . Programmer 21 | . . . . . . . 9 3 3 . . . 1 2 . . . . 2 . 1 . . . . . . . Subdweller 2 | . 2 . . . . . . . . . . . . . . . . . . . . . . . . . . . Best Kill Streak 10 | 5 4 5 2 . 4 6 4 10 3 . . . 1 2 . . . . 2 . 1 . 1 1 . 1 1 1 Combat Bots Only 7 | . 2 4 2 . 4 3 4 7 3 . . . 1 2 . . . . 2 . 1 . 1 . . . . . Max Kills in Single Turn 2 | 1 2 1 1 . 1 1 2 2 1 . . . 1 1 . . . . 1 . 1 . 1 1 . 1 1 1 Gunslinging . | . . . . . . . . . . . . . . . . . . . . . . . . . . . . . Exploded . | . . . . . . . . . . . . . . . . . . . . . . . . . . . . . Melee 1 | . . . . . . . . . 1 . . . . 1 . . . . 1 . 1 . . . . . . . Uniques/NPCs Destroyed . | . . . . . . . . . . . . . . . . . . . . . . . . . . . . . Combat | -11 -10 -9 -9 -9 -8 -8 -7 -7 -6 -6 -6 -6 -5 -5 -5 -5 -5 -4 -4 -4 -4 -4 -3 -3 -3 -2 -2 -1 -------- Run | Yrd Mat Mat Min Exi Min Mat Fac Sto Fac Low Low Dat Pro Fac Upp Upp War Pro Fac Upp Upp Zhi Pro Res DSF Res Qua Acc Hostile Shots Fired 1448 | . 56 163 13 . 57 92 248 268 130 1 . . 8 53 . . 3 11 14 2 . . 6 . 23 5 65 230 Missed 568 | . 14 39 3 . 15 28 90 89 69 . . . 3 29 . . 3 8 7 2 . . 6 . 15 2 37 109 Hits 880 | . 42 124 10 . 42 64 158 179 61 1 . . 5 24 . . . 3 7 . . . . . 8 3 28 121 Melee 6 | . . . 4 . . . . . . . . . . . . . . . . . . . . . . . 2 . Projectile 874 | . 42 124 6 . 42 64 158 179 61 1 . . 5 24 . . . 3 7 . . . . . 8 3 26 121 AOE 1 | . . . . . . . . . . . . . . . . . . . . . . . . . . . . 1 Critical Strikes 19 | . . 1 . . . 1 5 2 1 . . . . . . . . . . . . . . . . . 1 8 Actively Blocked 9 | . . . . . . . . . . . . . . . . . . . . . . . . . . . 1 8 Part Disruptions 3 | . . . . . . . . . . . . . . . 2 . . . . . . . . . . . . 1 Damage Taken 12699 | . 506 1363 252 . 333 848 1926 2021 840 19 . . 108 473 40 . . 84 144 . . . . . 163 74 675 2830 Core 3400 | . 131 290 23 . 71 157 279 308 152 . . . . 114 . . . . 23 . . . . . 67 18 165 1602 Absorbed by Shields . | . . . . . . . . . . . . . . . . . . . . . . . . . . . . . Redirected to Shielding 442 | . . 15 . . 33 195 54 33 . . . . . . . . . . . . . . . . . . 112 . Regen/Repaired (Parts) 1225 | . . 186 . . . 67 . 317 333 . . . . 202 . . 5 . 56 . . . . . . . . 59 Core Remaining (%) 68 | 100 47 . . . 4 71 . 16 . . . . 82 . . . . 88 . . . . 98 . 94 . 87 . Volleys Fired 625 | 47 68 124 18 . 20 125 135 88 . . . . . . . . . . . . . . . . . . . . Largest 2 | 2 2 2 2 . 2 2 2 2 . . . . . . . . . . . . . . . . . . . . Hottest 155 | 60 125 125 110 . 116 128 155 145 . . . . . . . . . . . . . . . . . . . . Shots Fired 1235 | 94 132 247 36 . 33 250 269 174 . . . . . . . . . . . . . . . . . . . . Gun 520 | 94 115 122 18 . 13 69 54 35 . . . . . . . . . . . . . . . . . . . . Cannon 715 | . 17 125 18 . 20 181 215 139 . . . . . . . . . . . . . . . . . . . . Launcher . | . . . . . . . . . . . . . . . . . . . . . . . . . . . . . Special . | . . . . . . . . . . . . . . . . . . . . . . . . . . . . . Kinetic 98 | 47 51 . . . . . . . . . . . . . . . . . . . . . . . . . . . Thermal 1137 | 47 81 247 36 . 33 250 269 174 . . . . . . . . . . . . . . . . . . . . Explosive . | . . . . . . . . . . . . . . . . . . . . . . . . . . . . . Electromagnetic . | . . . . . . . . . . . . . . . . . . . . . . . . . . . . . Robot Hit Streak 19 | 19 7 16 7 . 9 9 11 15 . . . . . . . . . . . . . . . . . . . . Robot Miss Streak 6 | 3 4 6 2 . 3 5 6 2 . . . . . . . . . . . . . . . . . . . . Penetration Max . | . . . . . . . . . . . . . . . . . . . . . . . . . . . . . Secondary Targets 1 | . 1 . . . . . . . . . . . . . . . . . . . . . . . . . . . Max Gunslinging Chain 1 | . 1 . . . . . . . . . . . . . . . . . . . . . . . . . . . Shots Hit Robots 861 | 65 80 147 21 . 19 144 168 113 31 . . . 9 24 . . . . 17 1 4 . 1 1 . 5 9 2 Core Hits 308 | 19 31 59 9 . 8 59 61 42 6 . . . . 7 . . . . 5 . 1 . . . . . 1 . Critical Kills 8 | 1 . . . . . 2 1 2 . . . . . . . . . . 1 . 1 . . . . . . . Critical Parts Destroyed 21 | . 1 . . . . . . 1 9 . . . 1 2 . . . . 1 . 2 . . 1 . 1 1 1 Critical Strikes 44 | 1 3 4 2 . . 5 3 4 9 . . . 1 2 . . . . 3 . 3 . . 1 . 1 1 1 Burn 13 | . 2 4 1 . . 3 2 1 . . . . . . . . . . . . . . . . . . . . Meltdown 4 | . . . . . . 2 1 1 . . . . . . . . . . . . . . . . . . . . Destroy 2 | 1 1 . . . . . . . . . . . . . . . . . . . . . . . . . . . Smash 23 | . . . . . . . . 2 9 . . . 1 2 . . . . 2 . 3 . . 1 . 1 1 1 Sever 1 | . . . . . . . . . . . . . . . . . . . 1 . . . . . . . . . Impale 1 | . . . 1 . . . . . . . . . . . . . . . . . . . . . . . . . Melee Attacks 684 | . . . 4 . . . 75 28 151 64 8 . 15 161 . 19 . . 73 3 4 . 10 2 . 33 16 18 Impact 396 | . . . . . . . . 27 138 47 8 . 12 79 . 2 . . 31 3 3 . 4 2 . 20 9 11 Slashing 205 | . . . . . . . . . 13 17 . . 3 82 . 17 . . 42 . 1 . 6 . . 13 7 4 Piercing 79 | . . . 4 . . . 75 . . . . . . . . . . . . . . . . . . . . . Entropic 3 | . . . . . . . . . . . . . . . . . . . . . . . . . . . . 3 Sneak Attacks 44 | . . . 1 . . . 12 4 8 . . . 2 7 . . . . 4 . 2 . 1 . . 2 . 1 Combat Hostiles 5 | . . . 1 . . . . . . . . . 1 . . . . . . . 2 . 1 . . . . . Follow-up Attacks 13 | . . . . . . . . . 3 . . . 1 3 . . . . 1 . 1 . . . . . 3 1 Damage Inflicted 22469 | 554 994 2424 418 . 334 2630 4661 3482 1836 . . . 765 1477 . . . . 1156 82 346 . 88 74 . 456 533 159 Guns 4518 | 554 815 1134 118 . 111 580 766 440 . . . . . . . . . . . . . . . . . . . . Cannons 9762 | . 179 1290 198 . 223 2009 3256 2607 . . . . . . . . . . . . . . . . . . . . Explosions . | . . . . . . . . . . . . . . . . . . . . . . . . . . . . . Melee 8146 | . . . 102 . . . 638 435 1836 . . . 765 1477 . . . . 1156 82 346 . 88 74 . 456 533 158 Ramming 43 | . . . . . . 41 1 . . . . . . . . . . . . . . . . . . . . 1 Kinetic 511 | 251 260 . . . . . . . . . . . . . . . . . . . . . . . . . . . Thermal 13769 | 303 734 2424 316 . 334 2589 4022 3047 . . . . . . . . . . . . . . . . . . . . Explosive . | . . . . . . . . . . . . . . . . . . . . . . . . . . . . . Electromagnetic . | . . . . . . . . . . . . . . . . . . . . . . . . . . . . . Impact 6065 | . . . . . . . . 435 1808 . . . 727 1021 . . . . 612 82 278 . 88 74 . 334 448 158 Slashing 1341 | . . . . . . . . . 28 . . . 38 456 . . . . 544 . 68 . . . . 122 85 . Piercing 740 | . . . 102 . . . 638 . . . . . . . . . . . . . . . . . . . . . Highest Corruption 8 | . . 1 1 1 1 . 5 8 8 8 8 8 8 3 3 3 3 . 1 . . . . . . . 5 7 Average Corruption 4 | . . 1 1 1 1 . 3 6 6 8 8 8 8 2 3 3 3 . 1 . . . . . . . 5 2 Corruption Purged 10 | . . . . . . . 3 . 6 . . . . . . . . . 1 . . . . . . . . . Corruption Blocked . | . . . . . . . . . . . . . . . . . . . . . . . . . . . . . Effects 339 | . . 4 6 2 . . 155 66 23 20 7 1 9 26 4 6 2 . 4 . . . . . . . . 4 Message Errors 78 | . . . 4 1 . . 31 18 8 5 1 . 2 5 1 1 . . . . . . . . . . . 1 Matter Fused 97 | . . 2 2 1 . . 47 14 6 5 2 1 1 6 3 1 1 . 2 . . . . . . . . 3 Heat Flow Errors 30 | . . . . . . . 13 12 1 1 . . 1 1 . 1 . . . . . . . . . . . . Energy Discharges 44 | . . 1 . . . . 22 5 3 3 2 . 1 4 . 1 . . 2 . . . . . . . . . Parts Rejected 2 | . . . . . . . 1 1 . . . . . . . . . . . . . . . . . . . . Parts Fused 4 | . . . . . . . 1 1 1 . . . . 1 . . . . . . . . . . . . . . Data Loss (minor) 46 | . . . . . . . 18 7 4 3 2 . 3 8 . 1 . . . . . . . . . . . . Data Loss (major) 9 | . . . . . . . 5 1 . 1 . . 1 1 . . . . . . . . . . . . . . Misfires 12 | . . 1 . . . . 8 3 . . . . . . . . . . . . . . . . . . . . Alerts 11 | . . . . . . . 4 3 . 2 . . . . . 1 1 . . . . . . . . . . . Weapon Failures 6 | . . . . . . . 5 1 . . . . . . . . . . . . . . . . . . . . Overload Shots . | . . . . . . . . . . . . . . . . . . . . . . . . . . . . . Overflow Damage 3575 | . . . 68 . . 23 94 267 933 . . . 561 419 . . . . 245 77 223 . 58 74 . 237 178 118 Projectiles 140 | . . . . . . 23 40 77 . . . . . . . . . . . . . . . . . . . . Explosions . | . . . . . . . . . . . . . . . . . . . . . . . . . . . . . Melee 3435 | . . . 68 . . . 54 190 933 . . . 561 419 . . . . 245 77 223 . 58 74 . 237 178 118 Knockbacks 23 | . . . . . . 1 . . 6 . . . 2 6 . . . . 5 . 1 . . . . 1 . 1 Impact 22 | . . . . . . 1 . . 5 . . . 2 6 . . . . 5 . 1 . . . . 1 . 1 Kinetic . | . . . . . . . . . . . . . . . . . . . . . . . . . . . . . Secondary 1 | . . . . . . . . . 1 . . . . . . . . . . . . . . . . . . . Self-Inflicted Damage 76 | . . . 56 . . 20 . . . . . . . . . . . . . . . . . . . . . . Shots 1 | . . . 1 . . . . . . . . . . . . . . . . . . . . . . . . . Rammed 4 | . . . . . . 2 1 . . . . . . . . . . . . . . . . . . . . 1 Targets Rammed 4 | . . . . . . 2 1 . . . . . . . . . . . . . . . . . . . . 1 Kicked . | . . . . . . . . . . . . . . . . . . . . . . . . . . . . . Crushed . | . . . . . . . . . . . . . . . . . . . . . . . . . . . . . Highest Temperature 453 | 60 194 199 36 . 6 288 451 453 158 171 . . 92 132 278 150 . 4 . . . . . . . . . . Average Temperature 63 | 21 70 68 17 . 2 52 51 104 88 90 . . 52 74 138 80 . 4 . . . . . . . . . . Received Heat Transfer 2031 | . 201 348 36 . . 198 150 723 117 9 . . . . . . . 9 . . . . . . 42 18 81 99 Effects 5 | . . . . . . . 1 4 . . . . . . . . . . . . . . . . . . . . Shutdowns 2 | . . . . . . . . 2 . . . . . . . . . . . . . . . . . . . . Interference 1 | . . . . . . . 1 . . . . . . . . . . . . . . . . . . . . . Short Circuit 2 | . . . . . . . . 2 . . . . . . . . . . . . . . . . . . . . Siege Activations . | . . . . . . . . . . . . . . . . . . . . . . . . . . . . . Martial Activations . | . . . . . . . . . . . . . . . . . . . . . . . . . . . . . Shielding Activations . | . . . . . . . . . . . . . . . . . . . . . . . . . . . . . Robots Disrupted . | . . . . . . . . . . . . . . . . . . . . . . . . . . . . . Combat Hostiles . | . . . . . . . . . . . . . . . . . . . . . . . . . . . . . Robots Corrupted 25 | . . . . . . . . 3 7 . . . 2 5 . . . . 2 . . . 1 1 . 1 1 2 Combat Hostiles 6 | . . . . . . . . . 3 . . . 2 . . . . . . . . . 1 . . . . . Parts Fried 30 | . . . . . . . . 1 15 . . . 3 5 . . . . . . 1 . 1 1 . 2 . 1 Impact Corruptions 91 | . . . . . . . . 5 24 . . . 13 14 . . . . 6 2 6 . 3 2 . 5 7 4 Robots Melted 8 | . . . . . . 2 2 4 . . . . . . . . . . . . . . . . . . . . Combat Hostiles 5 | . . . . . . 1 1 3 . . . . . . . . . . . . . . . . . . . . Parts Melted 54 | . 5 14 1 . 1 8 13 12 . . . . . . . . . . . . . . . . . . . . Heat Transferred 26802 | 700 1818 5809 814 . 740 5698 6387 4836 . . . . . . . . . . . . . . . . . . . . Parts Sabotaged 2 | . . . . . . . . . . . . . . . . . . . . . . . . . . . 2 . Parts Stolen . | . . . . . . . . . . . . . . . . . . . . . . . . . . . . . Parts Stripped . | . . . . . . . . . . . . . . . . . . . . . . . . . . . . . Power Chain Reactions . | . . . . . . . . . . . . . . . . . . . . . . . . . . . . . Alert | -11 -10 -9 -9 -9 -8 -8 -7 -7 -6 -6 -6 -6 -5 -5 -5 -5 -5 -4 -4 -4 -4 -4 -3 -3 -3 -2 -2 -1 ------- Run | Yrd Mat Mat Min Exi Min Mat Fac Sto Fac Low Low Dat Pro Fac Upp Upp War Pro Fac Upp Upp Zhi Pro Res DSF Res Qua Acc Maximum Alert Level 5 | . . 1 . . . 1 3 1 . . . . . 1 . . . . 1 . . . . . . . 5 5 Low Security (%) 75 | 100 100 91 100 . 100 89 51 72 100 . . . . 69 . . . . 99 . . . . 100 100 100 . . Level 1 14 | . . 8 . . . 10 21 27 . . . . . 30 . . . . . . . . . . . . . . Level 2 4 | . . . . . . . 16 . . . . . . . . . . . . . . . . . . . . . Level 3 3 | . . . . . . . 10 . . . . . . . . . . . . . . . . . . . . 20 Level 4 1 | . . . . . . . . . . . . . . . . . . . . . . . . . . . . 65 Level 5 . | . . . . . . . . . . . . . . . . . . . . . . . . . . . . 13 High Security . | . . . . . . . . . . . . . . . . . . . . . . . . . . . . . Max Security . | . . . . . . . . . . . . . . . . . . . . . . . . . . . 99 . Peak Influence 1658 | 10 55 224 104 . 50 252 898 390 162 . . . . 288 . . . . 216 . . . . 157 11 58 1658 1650 Initial 1100 | . . . 85 . . . 110 390 91 . . . . 2 . . . . 25 . . . . 150 11 6 . 1100 Average 172 | 1 6 93 31 . 11 72 284 185 64 . . . . 116 . . . . 26 . . . . 62 11 14 1610 1229 Influence Increases 8628 | 60 206 887 150 . 110 683 2084 789 660 60 . . 45 992 . . . 90 530 . 45 . 5 179 . 197 58 798 Destroy 0b10 Robot/C 2920 | . 100 520 40 . 80 320 1040 300 180 . . . 20 100 . . . . 200 . 20 . . . . . . . Destroy 0b10 Robot/NC 815 | 60 50 80 20 . 20 140 130 110 55 . . . 15 60 . . . . 35 . . . 5 5 . 15 5 10 Destroy Leader 938 | . 40 158 10 . 10 112 324 124 66 . . . 10 32 . . . . 34 . 10 . . 2 . 2 2 2 Allied During Kill 192 | . . . . . . . 163 . 8 . . . . . . . . . 21 . . . . . . . . . Trap Triggered on 0b10 10 | . . . . . . . . . . . . . . . . . . . 10 . . . . . . . . . Successful Hack 444 | . 16 48 . . . 29 33 18 91 . . . . 118 . . . . 39 . . . . 7 . . . 45 Disable Machine 645 | . . 30 30 . . 30 240 105 30 . . . . 75 . . . . 75 . . . . . . . 30 . Destroy Structure 609 | . . 6 20 . . 7 79 42 80 . . . . 202 . . . . 86 . . . . . . 60 6 21 Advance Influence 150 | . . . . . . . . . . . . . . . . . . . . . . . . 150 . . . . Partial Spotted 270 | . . . . . . . 45 30 90 . . . . 45 . . . . . . . . . 15 . 30 15 . Lose Combat Pursuer 1635 | . . 45 30 . . 45 30 60 60 60 . . . 360 . . . 90 30 . 15 . . . . 90 . 720 Influence Decreases 8886 | 60 206 667 370 . 110 439 1469 1447 767 126 28 . 40 732 219 46 . 50 418 147 50 . 5 164 4 208 50 1064 Entered New Map 1729 | . . . 135 . . . 134 469 110 36 6 . . 3 99 10 . . 15 57 2 . . . 4 5 . 644 Time Decay 5369 | 60 200 577 235 . 90 399 625 618 524 90 22 . 40 620 120 36 . 50 323 90 48 . 5 164 . 203 . 230 Lost Part 625 | . 6 90 . . 20 40 100 60 40 . . . . 19 . . . . 10 . . . . . . . 50 190 Lost Ally 861 | . . . . . . . 610 . 93 . . . . 90 . . . . 68 . . . . . . . . . Purge Threat 302 | . . . . . . . . 300 . . . . . . . . . . 2 . . . . . . . . . Squads Dispatched 83 | . 2 1 . . . 2 25 5 11 . . . . 16 . . . . 8 . . . . 1 1 1 6 4 Investigation 12 | . 2 . . . . . 5 . 1 . . . . 3 . . . . 1 . . . . . . . . . Extermination 42 | . . . . . . . 13 4 7 . . . . 11 . . . . 5 . . . . . . . . 2 Reinforcement 20 | . . 1 . . . 2 7 1 . . . . . 2 . . . . 2 . . . . 1 1 1 . 2 Assault 6 | . . . . . . . . . . . . . . . . . . . . . . . . . . . 6 . Garrison 3 | . . . . . . . . . 3 . . . . . . . . . . . . . . . . . . . Intercept . | . . . . . . . . . . . . . . . . . . . . . . . . . . . . . Searches Triggered . | . . . . . . . . . . . . . . . . . . . . . . . . . . . . . Data Miner Redirects 1 | . . . . . . . . . . . . . . 1 . . . . . . . . . . . . . . Construction Impeded 2 | . . . . . . . 1 . . . . . . . . . . . 1 . . . . . . . . . Haulers Reinforced 4 | . . . . . . . 2 1 . . . . . . . . . . . . . . . . . 1 . . Active Scanning Responses . | . . . . . . . . . . . . . . . . . . . . . . . . . . . . . Cargo Convoy Interrupts 1 | . . . . . . . . . . . . . . 1 . . . . . . . . . . . . . . Stealth | -11 -10 -9 -9 -9 -8 -8 -7 -7 -6 -6 -6 -6 -5 -5 -5 -5 -5 -4 -4 -4 -4 -4 -3 -3 -3 -2 -2 -1 --------- Run | Yrd Mat Mat Min Exi Min Mat Fac Sto Fac Low Low Dat Pro Fac Upp Upp War Pro Fac Upp Upp Zhi Pro Res DSF Res Qua Acc Distress Signals 27 | . 1 2 . . . 5 4 3 . . . . . 1 . . . . 1 . . . . . . 5 2 3 Communications Jammed 1 | . . . . . . . . . . . . . . 1 . . . . . . . . . . . . . . Distress Signals 1 | . . . . . . . . . . . . . . 1 . . . . . . . . . . . . . . Times Spotted 389 | . 13 40 4 . 4 32 54 26 18 2 . . 1 33 . . 6 6 16 1 1 . 1 2 3 7 48 71 Peak Tracking Total 36 | . 2 5 3 . 4 4 4 4 4 4 . . 1 9 . . 5 6 6 2 1 . 2 1 3 4 36 26 Tactical Retreats 45 | . . 3 2 . . 3 1 3 4 1 . . . 9 . . . 2 2 . 1 . . . . 3 . 11 Traps | -11 -10 -9 -9 -9 -8 -8 -7 -7 -6 -6 -6 -6 -5 -5 -5 -5 -5 -4 -4 -4 -4 -4 -3 -3 -3 -2 -2 -1 ------- Run | Yrd Mat Mat Min Exi Min Mat Fac Sto Fac Low Low Dat Pro Fac Upp Upp War Pro Fac Upp Upp Zhi Pro Res DSF Res Qua Acc Traps Triggered 14 | . 1 3 . . . 1 4 2 1 . . . . . 1 . . . . . . . . 1 . . . . Indirectly . | . . . . . . . . . . . . . . . . . . . . . . . . . . . . . Trap Hack Attempts . | . . . . . . . . . . . . . . . . . . . . . . . . . . . . . Triggered . | . . . . . . . . . . . . . . . . . . . . . . . . . . . . . Disarmed 12 | . . . . . . . . 4 . . . . . . . . . . 4 . . . . 4 . . . . Reprogrammed 11 | . . . . . . . . . 6 . . . . . . . . . 5 . . . . . . . . . Reused 1 | . . . . . . . . . . . . . . . . . . . 1 . . . . . . . . . Traps Extracted . | . . . . . . . . . . . . . . . . . . . . . . . . . . . . . Installed . | . . . . . . . . . . . . . . . . . . . . . . . . . . . . . Triggered 1 | . . . . . . . . . . . . . . . . . . . 1 . . . . . . . . . Machines | -11 -10 -9 -9 -9 -8 -8 -7 -7 -6 -6 -6 -6 -5 -5 -5 -5 -5 -4 -4 -4 -4 -4 -3 -3 -3 -2 -2 -1 ---------- Run | Yrd Mat Mat Min Exi Min Mat Fac Sto Fac Low Low Dat Pro Fac Upp Upp War Pro Fac Upp Upp Zhi Pro Res DSF Res Qua Acc Machines Disabled 43 | . . 2 2 . . 2 16 7 2 . . . . 5 . . . . 5 . . . . . . . 2 . Max in Single Turn 1 | . . 1 1 . . 1 1 1 1 . . . . 1 . . . . 1 . . . . . . . 1 . Garrison Access 7 | . . . . . . . 2 . 1 . . . . 1 . . . . 1 . . . . 1 . 1 . . Machines Repaired . | . . . . . . . . . . . . . . . . . . . . . . . . . . . . . Machines Dismantled 1 | . . . . . . . 1 . . . . . . . . . . . . . . . . . . . . . Machines Sabotaged . | . . . . . . . . . . . . . . . . . . . . . . . . . . . . . Overloaded Fab Kills . | . . . . . . . . . . . . . . . . . . . . . . . . . . . . . Hacking | -11 -10 -9 -9 -9 -8 -8 -7 -7 -6 -6 -6 -6 -5 -5 -5 -5 -5 -4 -4 -4 -4 -4 -3 -3 -3 -2 -2 -1 --------- Run | Yrd Mat Mat Min Exi Min Mat Fac Sto Fac Low Low Dat Pro Fac Upp Upp War Pro Fac Upp Upp Zhi Pro Res DSF Res Qua Acc Machines Accessed 182 | . 9 14 . 1 . 13 23 8 26 . . 4 1 31 3 1 5 . 23 1 . 2 . 7 . 4 . 6 Terminals 90 | . 7 9 . . . 9 9 6 14 . . . 1 15 . . . . 11 . . . . 3 . 1 . 5 Fabricators 16 | . . . . . . . 5 . 2 . . . . 3 . . . . 5 . . . . 1 . . . . Repair Stations 14 | . . 2 . . . 1 1 2 3 . . . . 2 . . . . 1 . . . . 1 . . . 1 Recycling Units 23 | . 2 1 . . . 2 4 . 4 . . . . 6 . . . . 3 . . . . . . 1 . . Scanalyzers 11 | . . 2 . . . 1 2 . 1 . . . . 3 . . . . 1 . . . . 1 . . . . Garrison Access 11 | . . . . . . . 2 . 2 . . . . 2 . . . . 2 . . . . 1 . 2 . . Total Hacks 622 | . 24 40 . 1 . 45 67 33 88 . . 28 2 109 3 1 12 . 127 2 . 2 . 17 . 10 . 11 Successful 395 | . 13 28 . 1 . 33 40 18 48 . . 28 2 59 3 1 12 . 84 2 . 2 . 13 . 4 . 4 Failed 223 | . 11 12 . . . 12 26 15 39 . . . . 49 . . . . 42 . . . . 4 . 6 . 7 Catastrophic 30 | . . 1 . . . . 3 4 5 . . . . 9 . . . . 5 . . . . . . . . 3 Database Lockouts 4 | . . . . . . . 1 . 1 . . . . 1 . . . . 1 . . . . . . . . . Manual 335 | . 20 25 . 1 . 32 40 13 50 . . . . 66 . . 2 . 71 . . . . 6 . 4 . 5 Terminals 347 | . 16 23 . . . 33 34 22 56 . . . 2 53 . . . . 89 . . . . 8 . 3 . 8 Fabricators 33 | . . . . . . . 10 . 3 . . . . 8 . . . . 9 . . . . 3 . . . . Repair Stations 57 | . . 9 . . . 3 2 11 13 . . . . 13 . . . . 2 . . . . 1 . . . 3 Recycling Units 65 | . 8 1 . . . 5 10 . 9 . . . . 17 . . . . 12 . . . . . . 3 . . Scanalyzers 51 | . . 7 . . . 4 8 . 3 . . . . 15 . . . . 10 . . . . 4 . . . . Garrison Access 20 | . . . . . . . 3 . 4 . . . . 3 . . . . 5 . . . . 1 . 4 . . Terminal Hacks 161 | . 3 9 . 1 . 13 7 8 14 . . 28 2 9 3 1 12 . 39 2 . 2 . 5 . 1 . 2 Record 33 | . . 1 . . . . . . . . . 11 2 . 1 . 10 . 3 2 . 2 . . . 1 . . Part Schematic 22 | . . . . . . 4 1 . 2 . . 11 . 1 . . . . 3 . . . . . . . . . Robot Schematic 5 | . . . . . . . . . 1 . . 3 . . . . . . 1 . . . . . . . . . Robot Analysis 22 | . 3 5 . . . 3 2 1 4 . . . . 1 . . . . 2 . . . . 1 . . . . Prototype ID Bank 6 | . . . . . . . . . . . . 3 . . . . . . 2 . . . . 1 . . . . Open Door 7 | . . . . . . . . . 2 . . . . . 2 1 2 . . . . . . . . . . . Open DSF 3 | . . . . . . . . . 1 . . . . 1 . . . . . . . . . 1 . . . . Level Access Points 6 | . . 1 . . . . 1 . 1 . . . . 1 . . . . 1 . . . . . . . . 1 Branch Access Points 1 | . . . . . . . . . . . . . . . . . . . 1 . . . . . . . . . Emergency Access Points 1 | . . . . . . . . . . . . . . . . . . . 1 . . . . . . . . . Machine Index 1 | . . . . . . . . . . . . . . . . . . . 1 . . . . . . . . . Terminal Index 9 | . . 1 . . . 1 1 1 . . . . . 2 . . . . 1 . . . . 1 . . . 1 Garrison Index 2 | . . . . . . . . . . . . . . 2 . . . . . . . . . . . . . . Alert Level 6 | . . . . . . 1 . 2 1 . . . . . . . . . 2 . . . . . . . . . Unreport Threat 3 | . . . . . . . . 2 . . . . . . . . . . 1 . . . . . . . . . Locate Traps 11 | . . . . . . 2 2 1 1 . . . . 1 . . . . 4 . . . . . . . . . Disarm Traps 3 | . . . . . . . . 1 . . . . . . . . . . 1 . . . . 1 . . . . Reprogram Traps 2 | . . . . . . . . . 1 . . . . . . . . . 1 . . . . . . . . . Investigation Status 1 | . . . . . . . . . . . . . . . . . . . 1 . . . . . . . . . Extermination Status 3 | . . . . . . . . . . . . . . . . . . . 3 . . . . . . . . . Recall Investigation 2 | . . . . . . 1 . . . . . . . . . . . . 1 . . . . . . . . . Recall Extermination 5 | . . . . . . . . . . . . . . . . . . . 5 . . . . . . . . . Recall Reinforcements 1 | . . . . . . 1 . . . . . . . . . . . . . . . . . . . . . . Hauler Manifests 1 | . . . . . . . . . . . . . . . . . . . 1 . . . . . . . . . Registered Components 3 | . . 1 . . . . . . . . . . . . . . . . 2 . . . . . . . . . Zone Layout 1 | . . . . . . . . . . . . . . . . . . . 1 . . . . . . . . . Proto ID Catalog 1 | . . . . 1 . . . . . . . . . . . . . . . . . . . . . . . . Fabricator Hacks 11 | . . . . . . . 4 . 1 . . . . 2 . . . . 3 . . . . 1 . . . . Network Status 9 | . . . . . . . 4 . 1 . . . . . . . . . 3 . . . . 1 . . . . Load Schematic 1 | . . . . . . . . . . . . . . 1 . . . . . . . . . . . . . . Build 1 | . . . . . . . . . . . . . . 1 . . . . . . . . . . . . . . Repair Station Hacks 44 | . . 8 . . . 3 . 7 11 . . . . 11 . . . . 2 . . . . . . . . 2 Scan Component 25 | . . 5 . . . 2 . 4 6 . . . . 6 . . . . 1 . . . . . . . . 1 Repair 19 | . . 3 . . . 1 . 3 5 . . . . 5 . . . . 1 . . . . . . . . 1 Recycling Unit Hacks 21 | . 3 . . . . 3 4 . 2 . . . . 4 . . . . 4 . . . . . . 1 . . Report Inventory 15 | . 2 . . . . 2 3 . 2 . . . . 3 . . . . 2 . . . . . . 1 . . Retrieve Matter 2 | . . . . . . . . . . . . . . 1 . . . . 1 . . . . . . . . . Retrieve Components 4 | . 1 . . . . 1 1 . . . . . . . . . . . 1 . . . . . . . . . Scanalyzer 40 | . . 6 . . . 4 7 . 1 . . . . 11 . . . . 8 . . . . 3 . . . . Insert Component 21 | . . 3 . . . 2 4 . 1 . . . . 5 . . . . 5 . . . . 1 . . . . Analyze 19 | . . 3 . . . 2 3 . . . . . . 6 . . . . 3 . . . . 2 . . . . Garrison Access Hacks 7 | . . . . . . . 2 . 1 . . . . 1 . . . . 1 . . . . 1 . 1 . . Seal Access 7 | . . . . . . . 2 . 1 . . . . 1 . . . . 1 . . . . 1 . 1 . . Unauthorized Hacks 111 | . 7 5 . . . 10 16 3 18 . . . . 21 . . . . 27 . . . . 3 . 1 . . Terminals 66 | . 5 4 . . . 8 8 3 9 . . . . 10 . . . . 16 . . . . 3 . . . . Assimilate 18 | . 1 1 . . . 1 3 . 3 . . . . 3 . . . . 5 . . . . 1 . . . . Botnet 36 | . 3 1 . . . 6 4 2 5 . . . . 6 . . . . 8 . . . . 1 . . . . Operators 12 | . 1 2 . . . 1 1 1 1 . . . . 1 . . . . 3 . . . . 1 . . . . Fabricators 15 | . . . . . . . 5 . 2 . . . . 3 . . . . 5 . . . . . . . . . Liberate 15 | . . . . . . . 5 . 2 . . . . 3 . . . . 5 . . . . . . . . . Repair Stations . | . . . . . . . . . . . . . . . . . . . . . . . . . . . . . Recycling Units 27 | . 2 1 . . . 2 3 . 4 . . . . 8 . . . . 6 . . . . . . 1 . . Reject 21 | . 2 1 . . . 2 3 . 3 . . . . 6 . . . . 3 . . . . . . 1 . . Mask 6 | . . . . . . . . . 1 . . . . 2 . . . . 3 . . . . . . . . . Scanalyzers . | . . . . . . . . . . . . . . . . . . . . . . . . . . . . . Garrison Access 3 | . . . . . . . . . 3 . . . . . . . . . . . . . . . . . . . Reprogram 1 | . . . . . . . . . 1 . . . . . . . . . . . . . . . . . . . Intercept 1 | . . . . . . . . . 1 . . . . . . . . . . . . . . . . . . . Watchers 1 | . . . . . . . . . 1 . . . . . . . . . . . . . . . . . . . Data Cores Recovered 3 | . . 1 . . . . 1 1 . . . . . . . . . . . . . . . . . . . . Used 1 | . . 1 . . . . . . . . . . . . . . . . . . . . . . . . . . Hacking Detections 129 | . 8 14 . . . 13 17 7 17 . . . . 25 . . . . 15 . . . . 4 . 3 . 6 Full Trace Events 9 | . 1 1 . . . 1 2 . . . . . . 3 . . . . 1 . . . . . . . . . Feedback Events 2 | . . 1 . . . . 1 . . . . . . . . . . . . . . . . . . . . . Corruption 2 | . . 1 . . . . 1 . . . . . . . . . . . . . . . . . . . . . Feedback Blocked . | . . . . . . . . . . . . . . . . . . . . . . . . . . . . . Robot Schematics Acquired 5 | . . . . . . . . . 1 . . 3 . . . . . . 1 . . . . . . . . . Robots Built . | . . . . . . . . . . . . . . . . . . . . . . . . . . . . . Authchips . | . . . . . . . . . . . . . . . . . . . . . . . . . . . . . Time . | . . . . . . . . . . . . . . . . . . . . . . . . . . . . . Total Robot Build Rating . | . . . . . . . . . . . . . . . . . . . . . . . . . . . . . Part Schematics Acquired 35 | . . 3 . . . 5 3 . 2 . . 11 . 5 . . . . 5 . . . . 1 . . . . Parts Built 1 | . . . . . . . . . . . . . . 1 . . . . . . . . . . . . . . Authchips . | . . . . . . . . . . . . . . . . . . . . . . . . . . . . . Time 95 | . . . . . . . . . . . . . . 95 . . . . . . . . . . . . . . Total Part Build Rating 5 | . . . . . . . . . . . . . . 5 . . . . . . . . . . . . . . Parts Repaired 19 | . . 3 . . . 1 . 3 5 . . . . 5 . . . . 1 . . . . . . . . 1 Time 809 | . . 96 . . . 38 . 176 181 . . . . 220 . . . . 44 . . . . . . . . 54 Parts Recycled . | . . . . . . . . . . . . . . . . . . . . . . . . . . . . . Recycled Matter . | . . . . . . . . . . . . . . . . . . . . . . . . . . . . . Retrieved Matter . | . . . . . . . . . . . . . . . . . . . . . . . . . . . . . Retrieved Components 30 | . 2 . . . . 10 10 . . . . . . . . . . . 8 . . . . . . . . . Parts Scanalyzed 15 | . . 3 . . . 1 3 . 1 . . . . 4 . . . . 2 . . . . 1 . . . . Part Schematics Acquired 13 | . . 3 . . . 1 2 . . . . . . 4 . . . . 2 . . . . 1 . . . . Parts Damaged 4 | . . 1 . . . . 1 . . . . . . 1 . . . . 1 . . . . . . . . . Bothacking | -11 -10 -9 -9 -9 -8 -8 -7 -7 -6 -6 -6 -6 -5 -5 -5 -5 -5 -4 -4 -4 -4 -4 -3 -3 -3 -2 -2 -1 ------------ Run | Yrd Mat Mat Min Exi Min Mat Fac Sto Fac Low Low Dat Pro Fac Upp Upp War Pro Fac Upp Upp Zhi Pro Res DSF Res Qua Acc Used RIF Installer . | . . . . . . . . . . . . . . . . . . . . . . . . . . . . . Robots Hacked 1 | . . . . . . . . 1 . . . . . . . . . . . . . . . . . . . . Non-combat 1 | . . . . . . . . 1 . . . . . . . . . . . . . . . . . . . . Combat . | . . . . . . . . . . . . . . . . . . . . . . . . . . . . . Robot Hacks Applied 1 | . . . . . . . . 1 . . . . . . . . . . . . . . . . . . . . no_distress 1 | . . . . . . . . 1 . . . . . . . . . . . . . . . . . . . . Relay Couplers Released . | . . . . . . . . . . . . . . . . . . . . . . . . . . . . . Fabnet Peak Effective % . | . . . . . . . . . . . . . . . . . . . . . . . . . . . . . Robots Rewired 1 | . . . . . . . 1 . . . . . . . . . . . . . . . . . . . . . Allies Hacked 5 | . . . . . . . 2 . 3 . . . . . . . . . . . . . . . . . . . Hacks Repelled 2 | . . . . . . . 1 . . . . . . . . . . . 1 . . . . . . . . . Allies | -11 -10 -9 -9 -9 -8 -8 -7 -7 -6 -6 -6 -6 -5 -5 -5 -5 -5 -4 -4 -4 -4 -4 -3 -3 -3 -2 -2 -1 -------- Run | Yrd Mat Mat Min Exi Min Mat Fac Sto Fac Low Low Dat Pro Fac Upp Upp War Pro Fac Upp Upp Zhi Pro Res DSF Res Qua Acc Total Allies 82 | . 1 . . . . . 60 . 6 . . . . 8 . . . . 7 . . . . . . . . . Largest Group 8 | . 1 . . . . . 8 . 3 . . . . 3 . . . . 3 . . . . . . . . . Highest-Rated Group 179 | . 10 . . . . . 179 . 87 . . . . 87 . . . . 107 . . . . . . . . . Highest-Rated Ally 49 | . 10 . . . . . 32 . 29 . . . . 29 . . . . 49 . . . . . . . . . Total Orders 14 | . . . . . . . . . 9 . . . . . . . . . 5 . . . . . . . . . STAY 5 | . . . . . . . . . 3 . . . . . . . . . 2 . . . . . . . . . FOLLOW 2 | . . . . . . . . . 2 . . . . . . . . . . . . . . . . . . . EXPLORE 6 | . . . . . . . . . 3 . . . . . . . . . 3 . . . . . . . . . RETURN 1 | . . . . . . . . . 1 . . . . . . . . . . . . . . . . . . . Ally Attacks 307 | . . . . . . . 224 . 18 . . . . 38 . . . . 27 . . . . . . . . . Total Damage 4993 | . . . . . . . 3644 . 284 . . . . 452 . . . . 613 . . . . . . . . . Kills 46 | . . . . . . . 31 . 4 . . . . 3 . . . . 8 . . . . . . . . . Allies Corrupted 4 | . . . . . . . 2 . 1 . . . . . . . . . 1 . . . . . . . . . Allies Melted 2 | . . . . . . . 2 . . . . . . . . . . . . . . . . . . . . . Intel | -11 -10 -9 -9 -9 -8 -8 -7 -7 -6 -6 -6 -6 -5 -5 -5 -5 -5 -4 -4 -4 -4 -4 -3 -3 -3 -2 -2 -1 ------- Run | Yrd Mat Mat Min Exi Min Mat Fac Sto Fac Low Low Dat Pro Fac Upp Upp War Pro Fac Upp Upp Zhi Pro Res DSF Res Qua Acc Active Infowar (turns) 6121 | 259 668 . . . . 121 333 . . 582 181 35 298 1864 257 252 126 88 137 196 164 72 155 72 . 20 86 155 Optics 2321 | . . . . . . . 333 . . . . . . 1353 257 252 126 . . . . . . . . . . . Sensors 3021 | . 618 . . . . . . . . 582 181 35 298 12 257 252 62 88 . 196 164 72 155 49 . . . . Terrain 457 | . . . . . . . . . . . . . . 457 . . . . . . . . . . . . . . Seismic 309 | 259 50 . . . . . . . . . . . . . . . . . . . . . . . . . . . Machine Analysis 121 | . . . . . . 121 . . . . . . . . . . . . . . . . . . . . . . Cloaking 64 | . . . . . . . . . . . . . . . . . . . . . . . . . . . 64 . Jamming 382 | . . . . . . . . . . . . . . 92 . . . . 137 . . . . 32 . 20 22 79 ECM 76 | . . . . . . . . . . . . . . . . . . . . . . . . . . . . 76 Robot Analysis Total 19 | . 3 5 . . . 1 2 1 3 . . . . 1 . . . . 2 . . . . 1 . . . . Derelict Logs Recovered 16 | . . . 1 . . . . . . 3 2 . 1 . 2 3 . 1 . 1 2 . . . . . . . Drone Launches 7 | . . . . . . . . . 3 . . . . . . . . . 4 . . . . . . . . . Drone Recoveries 4 | . . . . . . . . . 3 . . . . . . . . . 1 . . . . . . . . . Exploration | -11 -10 -9 -9 -9 -8 -8 -7 -7 -6 -6 -6 -6 -5 -5 -5 -5 -5 -4 -4 -4 -4 -4 -3 -3 -3 -2 -2 -1 ------------- Run | Yrd Mat Mat Min Exi Min Mat Fac Sto Fac Low Low Dat Pro Fac Upp Upp War Pro Fac Upp Upp Zhi Pro Res DSF Res Qua Acc Turns Passed 29446 | 334 1429 2258 801 407 329 2273 8114 2071 2370 582 181 35 298 3225 257 252 249 101 1481 196 164 72 155 423 51 688 151 499 Spaces Moved 35112 | 203 1085 1297 655 349 244 1354 5266 1315 4199 935 526 120 582 5137 810 605 800 349 2552 550 571 243 501 900 119 2230 351 1264 Core 30 | 13 1 6 . . . . . . 2 . . . . . . . . . . . . . . . . . . 8 Treads . | . . . . . . . . . . . . . . . . . . . . . . . . . . . . . Legs . | . . . . . . . . . . . . . . . . . . . . . . . . . . . . . Wheels 11378 | 190 1084 1291 655 349 244 1354 5266 945 . . . . . . . . . . . . . . . . . . . . Hover . | . . . . . . . . . . . . . . . . . . . . . . . . . . . . . Flight 23704 | . . . . . . . . 370 4197 935 526 120 582 5137 810 605 800 349 2552 550 571 243 501 900 119 2230 351 1256 Fastest Speed 21 | 50 80 100 95 95 95 95 95 29 26 29 29 29 29 29 29 32 24 24 23 24 24 24 24 24 21 21 22 21 Average Speed 52 | 86 93 120 110 115 109 111 104 83 27 29 29 29 29 29 30 32 28 25 26 25 26 25 24 24 31 21 22 25 Slowest Speed 600 | 100 250 600 125 125 120 125 135 115 150 29 29 29 29 29 32 32 32 27 27 27 27 27 24 24 96 120 100 92 Overloaded Moves . | . . . . . . . . . . . . . . . . . . . . . . . . . . . . . Propulsion Burnouts . | . . . . . . . . . . . . . . . . . . . . . . . . . . . . . Robots Hopped 104 | . . . . . . . . 4 32 . . . . 15 1 . 2 . 3 . . . . 4 . 14 10 19 Potential Cave-ins 2 | . . . . . . . 2 . . . . . . . . . . . . . . . . . . . . . Cave-ins Triggered 1 | . . . . . . . . . 1 . . . . . . . . . . . . . . . . . . . Exploration Rate (%) 63 | 10 96 81 73 70 36 81 69 80 62 75 65 75 65 72 83 84 94 59 42 69 83 62 65 14 86 44 34 24 Regions Visited 28 Branch Regions 17 Pre-discovered Areas 6 | . . . . . . . . . . 1 . 1 . . 1 1 . . . 1 1 . . . . . . . Known Exits Taken 22 | . . . . . 1 1 1 1 1 1 1 1 1 1 1 1 1 1 1 1 1 1 1 1 . 1 1 . Unknown Exits Taken 5 | 1 1 1 1 1 . . . . . . . . . . . . . . . . . . . . . . . . Scrap Searched 28 | . . . 1 . . . . . . 9 1 . 2 . 3 4 . 3 . 2 2 . 1 . . . . . Spaces Dug 393 | . . . 1 . . . 41 17 82 47 8 . 4 101 . 14 . . 41 1 . . 7 . . 20 2 7 Terrain Destroyed 468 | . . . 21 . . . 73 40 82 47 8 . 4 101 . 14 . . 41 1 . . 7 . . 20 2 7 Melee 388 | . . . 1 . . . 40 13 82 47 8 . 4 101 . 14 . . 41 1 . . 7 . . 20 2 7 Projectile 43 | . . . . . . . 16 27 . . . . . . . . . . . . . . . . . . . . AOE 37 | . . . 20 . . . 17 . . . . . . . . . . . . . . . . . . . . . Terrain Rammed . | . . . . . . . . . . . . . . . . . . . . . . . . . . . . . Walls Destroyed . | . . . . . . . . . . . . . . . . . . . . . . . . . . . . . Machines Disabled . | . . . . . . . . . . . . . . . . . . . . . . . . . . . . . Actions | -11 -10 -9 -9 -9 -8 -8 -7 -7 -6 -6 -6 -6 -5 -5 -5 -5 -5 -4 -4 -4 -4 -4 -3 -3 -3 -2 -2 -1 --------- Run | Yrd Mat Mat Min Exi Min Mat Fac Sto Fac Low Low Dat Pro Fac Upp Upp War Pro Fac Upp Upp Zhi Pro Res DSF Res Qua Acc Total 43637 | 276 1387 1751 689 352 274 1877 7504 2075 5147 1147 537 119 685 6608 817 636 821 360 3250 596 574 251 520 1097 132 2368 389 1398 Wait 6650 | . 188 252 . . . 353 1870 519 818 162 4 . 92 1318 5 . 6 12 580 44 1 . 12 193 4 79 24 114 Move 34887 | 202 1084 1296 654 348 243 1353 5265 1306 4137 934 525 119 581 5106 807 604 795 348 2545 549 570 242 500 891 118 2203 331 1231 Hop 93 | . . . . . . . . 4 29 . . . . 15 1 . 2 . 3 . . . . 4 . 12 9 14 Pick Up 130 | 12 18 21 2 1 5 8 25 21 4 . . . . 4 . 1 2 . 3 . . . . . 1 2 . . Fast Attach 226 | 7 3 19 2 . 1 14 29 26 19 1 . . . 17 2 6 7 . 24 . . 5 . 4 5 20 7 8 Attach 67 | 1 5 12 1 . 4 3 8 16 2 . . . . 1 . 1 . . 4 . . . . 1 . 1 1 6 Detach 50 | 1 1 4 . . . 1 8 13 2 1 . . . 2 . 2 1 . 3 . . 1 . 1 2 1 . 6 Swap 55 | 1 5 3 4 1 . 4 21 8 3 1 . . . 1 . . . . 3 . . . . . . . . . Drop 248 | 5 15 20 4 2 1 14 42 48 13 1 . . . 9 2 5 8 . 24 . . 3 . 1 2 21 6 2 Fire 625 | 47 68 124 18 . 20 125 135 88 . . . . . . . . . . . . . . . . . . . . Melee 573 | . . . 4 . . . 75 23 120 47 8 . 12 135 . 17 . . 60 3 3 . 8 2 . 29 11 16 Ram 4 | . . . . . . 2 1 . . . . . . . . . . . . . . . . . . . . 1 Kick . | . . . . . . . . . . . . . . . . . . . . . . . . . . . . . Crush . | . . . . . . . . . . . . . . . . . . . . . . . . . . . . . Escape Stasis . | . . . . . . . . . . . . . . . . . . . . . . . . . . . . . Rewire 4 | . . . . . . . 1 3 . . . . . . . . . . . . . . . . . . . . Trap . | . . . . . . . . . . . . . . . . . . . . . . . . . . . . . Miscellaneous 25 | . . . . . . . 24 . . . . . . . . . . . 1 . . . . . . . . . Route ------- -11/Scrapyard -10/Materials (discovered 5 exits: *Mat x3 / [*Min] / [*Sub]) -9/Materials (discovered 4 exits: *Mat x3 / [*Min]) -9/Mines (discovered 2 exits: *Mat / *Exi) -9/Exiles (discovered 2 exits: [*Min x2]) -8/Mines (discovered 2 exits: *Mat x2) -8/Materials (discovered 2 exits: *Fac x2) -7/Factory (discovered 6 exits: *Fac x4 / *Sto / [*Low]) -7/Storage -6/Factory (discovered 7 exits: *Fac x4 / *Low / *Ext x2) -6/Lower Caves -6/Lower Caves -6/Data Miner -5/Proximity Caves -5/Factory (discovered 6 exits: *Fac x4 / *Upp x2) -5/Upper Caves -5/Upper Caves (discovered 2 exits: *Fac / *War) -5/Warlord -4/Proximity Caves -4/Factory (discovered 6 exits: *Res x4 / *Upp x2) -4/Upper Caves -4/Upper Caves (discovered 2 exits: *Res / *Zhi) -4/Zhirov -3/Proximity Caves -3/Research -3/DSF -2/Research (discovered 3 exits: *Acc x2 / *Qua) -2/Quarantine -1/Access (discovered 2 exits: Sur / *Com) History --------- Turn | Location | Event 25 | -11/Scrapyard | Discovered new exit (range 15) 335 | -11/Scrapyard | Entered Materials 336 | -10/Materials | Build established: Mutant 657 | -10/Materials | Discovered new exit (range 11) 734 | -10/Materials | Discovered new exit (range 11) 835 | -10/Materials | Derelicts attacked the area 837 | -10/Materials | Discovered new exit (range 14) 1005 | -10/Materials | Core integrity fell below 50% 1055 | -10/Materials | Lost 4 parts (1p2n1u) 1306 | -10/Materials | Build established: Scavenger-Mutant 1427 | -10/Materials | Discovered new exit (range 16) 1607 | -10/Materials | Discovered new exit (range 12) 1764 | -10/Materials | Entered another Materials area 1764 | -9/Materials | Evolved 2 slots: Utility x2 2050 | -9/Materials | Lost 3 parts (2n1u) 2227 | -9/Materials | Build established: Mutant 2601 | -9/Materials | Build established: Scavenger-Mutant 2748 | -9/Materials | Discovered new exit (range 16) 3021 | -9/Materials | Discovered new exit (range 16) 3299 | -9/Materials | Core integrity fell below 50% 3522 | -9/Materials | Discovered new exit (range 12) 3589 | -9/Materials | Repaired Beam Cannon 3623 | -9/Materials | Repaired Arm. Wheel 3662 | -9/Materials | Repaired Imp. Heat Sink 3880 | -9/Materials | Identified exit to Materials 4022 | -9/Materials | Entered Mines 4040 | -9/Mines | Met a Derelict bent on vengeance 4151 | -9/Mines | Discovered exit to Materials (range 9) 4207 | -9/Mines | A weapon hastily lodged in a ceiling crevice suddenly fell to the ground 4740 | -9/Mines | Assembled infested the area 4817 | -9/Mines | Discovered new exit (range 5) 4823 | -9/Mines | Entered Exiles 4848 | -9/Exiles | Discovered new exit (range 14) 4877 | -9/Exiles | Met 8R-AWN 4898 | -9/Exiles | Met EX-HEX 4982 | -9/Exiles | Met EX-DEC 5047 | -9/Exiles | Met EX-BIN 5075 | -9/Exiles | Aligned with FarCom system 5076 | -9/Exiles | Given EX-Vault access code 5107 | -9/Exiles | Opened EX-Vault 5129 | -9/Exiles | Found Supersonic Drone Bay 5149 | -9/Exiles | Warned to stay clear of 0b10 Research branches 5216 | -9/Exiles | Discovered new exit (range 10) 5230 | -9/Exiles | Left Exiles lab with Supersonic Drone Bay 5230 | -9/Exiles | Entered Mines 5233 | -8/Mines | Core integrity fell below 20% 5287 | -8/Mines | Lost 5 parts (1p2n1u1w) 5525 | -8/Mines | Discovered exit to Materials (range 13) 5549 | -8/Mines | Discovered exit to Materials (range 11) 5559 | -8/Mines | Entered Materials 5559 | -8/Materials | Evolved 2 slots: Utility x2 5560 | -8/Materials | Identified exit to Factory 7514 | -8/Materials | Repaired Imp. Weapon Shielding 7685 | -8/Materials | Discovered exit to Factory (range 4) 7832 | -8/Materials | Entered Factory 7832 | -7/Factory | Evolved 2 slots: Propulsion x1, Utility x1 7874 | -7/Factory | Discovered new exit (range 15) 8207 | -7/Factory | Central database locked down 8648 | -7/Factory | P-60 Hacker assimilated allied Guardian 4a 8710 | -7/Factory | Lost 5 parts (3n2u) 10088 | -7/Factory | Build established: Hacker-Mutant 10391 | -7/Factory | Lost 3 allies 11776 | -7/Factory | Discovered new exit (range 4) 11961 | -7/Factory | Discovered new exit (range 16) 13624 | -7/Factory | P-60 Hacker assimilated allied B-48 Gladiator 13668 | -7/Factory | P-60 Hacker assimilated allied H-55 Commando 14494 | -7/Factory | Lost 4 allies 14613 | -7/Factory | Identified exit to Factory 15205 | -7/Factory | Discovered new exit (range 14) 15882 | -7/Factory | Found Unknown Protection 15882 | -7/Factory | Identified Powered Armor 15942 | -7/Factory | Identified exit to Storage 15946 | -7/Factory | Entered Storage 15984 | -7/Storage | Build established: Mutant 15999 | -7/Storage | Repaired Hvy. Ion Cannon 16958 | -7/Storage | Core integrity fell below 50% 17024 | -7/Storage | Core integrity fell below 20% 17055 | -7/Storage | Destroyed 7 combat bots 17058 | -7/Storage | Lost 6 parts (2n2u2w) 17204 | -7/Storage | Repaired Broken Enh. Nuclear Core 17255 | -7/Storage | Repaired Plasma Cannon 17296 | -7/Storage | Build established: Scavenger-Mutant 17875 | -7/Storage | Build established: Scout 18011 | -7/Storage | Discovered exit to Factory (range 8) 18017 | -7/Storage | Entered Factory 18017 | -6/Factory | Evolved 2 slots: Propulsion x1, Utility x1 18220 | -6/Factory | Discovered new exit (range 6) 18233 | -6/Factory | Discovered new exit (range 15) 18291 | -6/Factory | Identified exit to Factory 18302 | -6/Factory | Identified exit to Extension 18365 | -6/Factory | Discovered exit to Factory (range 31) 19044 | -6/Factory | Discovered exit to Extension (range 5) 19551 | -6/Factory | Repaired Imp. Light Armor Plating 19622 | -6/Factory | Repaired Cld. Deuterium Engine 19818 | -6/Factory | Garrison activated, responded to threat 19882 | -6/Factory | Repaired Katana 19921 | -6/Factory | Central database locked down 20042 | -6/Factory | Build established: Hacker-Scout 20108 | -6/Factory | Crushed by falling debris 20256 | -6/Factory | Discovered new exit (range 7) 20297 | -6/Factory | Repaired Imp. Cesium-ion Thruster 20325 | -6/Factory | Repaired Great Maul 20387 | -6/Factory | Identified exit to Lower Caves 20387 | -6/Factory | Entered Lower Caves 20400 | -6/Lower Caves | Learned 4 Factory zone layouts 20408 | -6/Lower Caves | Learned 8 Factory zone layouts 20532 | -6/Lower Caves | Found DCF Scrap (13 items) 20572 | -6/Lower Caves | Encountered a Warlord checkpoint 20687 | -6/Lower Caves | Build established: Hacker-Sprinter 20956 | -6/Lower Caves | Discovered new exit (range 9) 20958 | -6/Lower Caves | Identified exit to Lower Caves 20969 | -6/Lower Caves | Entered another Lower Caves area 20996 | -6/Lower Caves | Learned Factory trap positions 21095 | -6/Lower Caves | Learned Factory garrison access intel 21116 | -6/Lower Caves | Discovered new exit (range 9) 21118 | -6/Lower Caves | Identified exit to Data Miner 21150 | -6/Lower Caves | Entered Data Miner 21150 | -6/Data Miner | Discovered new exit (range 6) 21156 | -6/Data Miner | Met Data Miner 21173 | -6/Data Miner | Learned location of Section 7 (-2) 21173 | -6/Data Miner | Acquired the access code to Warlord's prototype stash 21179 | -6/Data Miner | Received God Mode back door access code from Data Miner 21185 | -6/Data Miner | Identified exit to Proximity Caves 21185 | -6/Data Miner | Entered Proximity Caves 21212 | -5/Proximity Caves | Spotted B-75 Beast 21359 | -5/Proximity Caves | Learned Factory stockpile data 21480 | -5/Proximity Caves | Discovered exit to Factory (range 6) 21483 | -5/Proximity Caves | Entered Factory 21483 | -5/Factory | Evolved 2 slots: Utility x2 21484 | -5/Factory | Identified exit to Upper Caves 21485 | -5/Factory | Loaded intel: 116 trap records 21487 | -5/Factory | Loaded intel: 4 garrison access locations 21507 | -5/Factory | Incoming investigation squad redirected 21771 | -5/Factory | Build established: Hacker-Scout 21960 | -5/Factory | Repaired Imp. Heat Sink? 22050 | -5/Factory | Central database locked down 22325 | -5/Factory | Build established: Hacker-Ninja 22494 | -5/Factory | Cargo convoy interrupted 22539 | -5/Factory | Discovered exit to Upper Caves (range 5) 22563 | -5/Factory | Discovered new exit (range 16) 23029 | -5/Factory | Fabricated Imp. Hacking Suite? 23347 | -5/Factory | Lost 4 parts (4u) 23492 | -5/Factory | Repaired Angular Momentum Engine 23531 | -5/Factory | Repaired Imp. Sensor Array 23594 | -5/Factory | Repaired Imp. Transmission Jammer 23634 | -5/Factory | Repaired Great Maul 24028 | -5/Factory | Identified exit to Factory 24708 | -5/Factory | Entered Upper Caves 24737 | -5/Upper Caves | Entered a destroyed Warlord outpost 24751 | -5/Upper Caves | Learned location of Armory (-3) 24763 | -5/Upper Caves | Found DCF Scrap (13 items) 24943 | -5/Upper Caves | Learned Factory garrison access intel 24953 | -5/Upper Caves | Discovered new exit (range 7) 24955 | -5/Upper Caves | Identified exit to Upper Caves 24965 | -5/Upper Caves | Entered another Upper Caves area 24972 | -5/Upper Caves | Discovered exit to Factory (range 7) 24980 | -5/Upper Caves | Learned location of Warlord (-5) 25017 | -5/Upper Caves | Learned Factory terminal intel 25048 | -5/Upper Caves | Learned 8 Factory zone layouts 25186 | -5/Upper Caves | Discovered new exit (range 10) 25189 | -5/Upper Caves | Identified exit to Warlord 25196 | -5/Upper Caves | Found DCF Scrap (16 items) 25217 | -5/Upper Caves | Entered Warlord 25231 | -5/Warlord | Discovered new exit (range 8) 25234 | -5/Warlord | Identified exit to Proximity Caves 25254 | -5/Warlord | System corruption cleaned by Quarantine Array 25322 | -5/Warlord | Received a Watcher feed algorithm from an ecstatic Tinkerer 25322 | -5/Warlord | Ran a Watcher feed algorithm 25341 | -5/Warlord | Opened Warlord's prototype stash 25344 | -5/Warlord | Found Prototype Hackware 25344 | -5/Warlord | Identified Ghost Barrier 25364 | -5/Warlord | Met Warlord 25374 | -5/Warlord | Warlord's base attacked by MAIN.C 25397 | -5/Warlord | Found Prototype Piercing Weapon 25397 | -5/Warlord | Identified Vortex Lance 25399 | -5/Warlord | Found Vortex Lance 25459 | -5/Warlord | Opened side exit 25466 | -5/Warlord | Entered Proximity Caves 25471 | -4/Proximity Caves | Spotted B-86 Titan 25494 | -4/Proximity Caves | Learned 4 Research zone layouts 25561 | -4/Proximity Caves | Discovered exit to Factory (range 6) 25567 | -4/Proximity Caves | Entered Factory 25567 | -4/Factory | Evolved 2 slots: Propulsion x1, Utility x1 25569 | -4/Factory | Loaded intel: 25 terminal locations 25570 | -4/Factory | Loaded intel: 4 garrison access locations 26065 | -4/Factory | Repaired Power Maul 26069 | -4/Factory | Found Prototype Hackware 26069 | -4/Factory | Identified Exp. Hacking Suite 26301 | -4/Factory | Discovered new exit (range 10) 26310 | -4/Factory | Identified exit to Research 26314 | -4/Factory | Discovered exit to Research (range 15) 26404 | -4/Factory | Central database locked down 26404 | -4/Factory | Identified exit to Upper Caves 26414 | -4/Factory | Build established: Wizard-Ninja 27048 | -4/Factory | Entered Upper Caves 27092 | -4/Upper Caves | Entered a destroyed Warlord outpost 27241 | -4/Upper Caves | Discovered new exit (range 10) 27243 | -4/Upper Caves | Identified exit to Upper Caves 27244 | -4/Upper Caves | Entered another Upper Caves area 27249 | -4/Upper Caves | Discovered exit to Research (range 5) 27294 | -4/Upper Caves | Encountered a Warlord checkpoint 27328 | -4/Upper Caves | Spotted B-86 Titan 27352 | -4/Upper Caves | Build established: Wizard-Sprinter 27403 | -4/Upper Caves | Discovered new exit (range 7) 27405 | -4/Upper Caves | Identified exit to Zhirov 27408 | -4/Upper Caves | Entered Zhirov 27408 | -4/Zhirov | Discovered new exit (range 3) 27452 | -4/Zhirov | Found Alien Artifact 27452 | -4/Zhirov | Identified Integrated Dissipator 27452 | -4/Zhirov | Installed Integrated Dissipator, increased core heat dissipation (+20) 27479 | -4/Zhirov | Identified exit to Proximity Caves 27480 | -4/Zhirov | Entered Proximity Caves 27554 | -3/Proximity Caves | Spotted B-86 Titan 27600 | -3/Proximity Caves | Spotter reported a threat 27633 | -3/Proximity Caves | Discovered exit to Research (range 7) 27635 | -3/Proximity Caves | Entered Research 27635 | -3/Research | Evolved 2 slots: Power x1, Utility x1 27718 | -3/Research | Identified exit to DSF 28058 | -3/Research | Entered DSF 28085 | -3/DSF | Additional patrols routed to DSF 28095 | -3/DSF | Discovered new exit (range 13) 28109 | -3/DSF | Identified exit to Research 28109 | -3/DSF | Entered Research 28109 | -2/Research | Warlord forces began assault on 0b10 28109 | -2/Research | Evolved 2 slots: Utility x2 28160 | -2/Research | Discovered new exit (range 14) 28219 | -2/Research | Research machine network offline 28250 | -2/Research | Identified exit to Access 28339 | -2/Research | Discovered exit to Access (range 9) 28383 | -2/Research | Build established: Hacker-Ninja 28534 | -2/Research | Met DD-05H 28669 | -2/Research | Discovered new exit (range 14) 28672 | -2/Research | Identified exit to Quarantine 28746 | -2/Research | Borebot progress halted 28797 | -2/Research | Entered Quarantine 28798 | -2/Quarantine | Maximum security lockdown engaged 28879 | -2/Quarantine | Found Alien Artifact 28879 | -2/Quarantine | Identified Subatomic Replicator 28886 | -2/Quarantine | Found Prototype Device 28886 | -2/Quarantine | Identified Exp. Transmission Jammer 28903 | -2/Quarantine | Lost 3 allies 28928 | -2/Quarantine | Build established: Hacker-Sprinter 28930 | -2/Quarantine | Spotted Executioner 28930 | -2/Quarantine | Spotted Striker 28937 | -2/Quarantine | Discovered exit to Access (range 12) 28948 | -2/Quarantine | Entered Access 28948 | -1/Access | Evolved 2 slots: Propulsion x1, Utility x1 28978 | -1/Access | Lost 5 parts (5u) 29048 | -1/Access | Identified exit to Surface 29156 | -1/Access | Discovered new exit (range 8) 29157 | -1/Access | Identified exit to Command 29253 | -1/Access | Repaired Imp. Diametric Drive? 29290 | -1/Access | Lost 3 parts (2n1u) 29439 | -1/Access | Core integrity fell below 50% 29444 | -1/Access | Core integrity fell below 20% 29447 | -1/Access | Destroyed by P-80 Master with Gamma Rifle Last Messages --------------- 29422_ S-43 Plague destroyed. 29424_ System corrupted: Matter fused (-7). 29424_ Phasing Sabre destroyed. 29424_ Impulse Thruster destroyed. 29424_ Imp. Cesium-ion Thruster destroyed. 29429_ Imp. Diametric Drive destroyed. 29431_ P-80 Master resets S-43 Plague, system corruption cleaned. 29432_ Adv. Signal Interpreter destroyed. 29434_ System Shield destroyed. 29435_ Shock Maul destroyed. 29436_ P-80 Master resets P-80 Master, system corruption cleaned. 29436_ Adv. Weight Redist. System destroyed. 29439_ G-73 Enforcer suffers critical hit (Burn). 29441_ Vortex Lance destroyed. 29442_ Slammed into S-43 Plague. 29444_ Imp. Hacking Suite destroyed. 29444_ U-05 Engineer lays Concrete. Map ----- +----------------------------------------------------+ | "" #???""F" #??????????????????????????? | | "" #???"""" * #??????????????????????????? | | #????""" #??????????????????????????? | | #?????? #??????????????????????????? | | ##????? #??????????????????????????? | | ##+#####?????###+######??????????????????????????? | | ##????# ??????????????????????????? | | #?????# ????????????????????????? | | #?????# ????????????????????????? | | #?????# ??w????????????????????? | | #?????# ????????????????????????? | | #?????# ?????????????????????????? | | ####### ???????????????????????????? | | w #????????????????????????????? | | #????????????????????????????? | | #????????????????????????????? | | #????????????????????????????? | | #????????????????????????????? | | #????????????????????????????? | | ########?????????????????????? | | #########+### #?????????????????????? | | p # #?????????????????????? | | # #?????????????????????? | | # s ##############????????? | | # g ss # [ #????????? | | # p @ # #????????? | | # g s # #????????? | | = " ######## s # #????????? | | """ #??????# s # #????????? | | """ #??????# # #????????? | | " #??????# + #????????? | | #??????# # #????????? | | #??????# spsg# s #????????? | | #############??????# s # #????????? | | ?????????????#############s# s #????????? | | ?????????????# #?#s# #????????? | | ?????????????# ### ####/##############???? | | ?????????????# " # pg ##p# #???? | | ?????????????#""" # T" p## # [%= #???? | | ?????????????# """ + "" pg / = #???? | | ?????????????# " # ## # = ##??? | | ?????????????# # ## # #??? | | ?????????????# ######## ###############??? | | ?????????????##################+#######??????????? | | ????????????????????????# #??????????? | | ????????????????????????# #??????????? | | ????????????????????????# """"""" #??????????? | | ????????????????????????# """"""" #??????????? | | ????????????????????????# #??????????? | | ????????????????????????# #??????????? | +----------------------------------------------------+ Best States ------------- Heat Dissipation 72 Coolant Potential 50 Energy Generation 45 Energy Capacity 780 Matter Stores 300 Matter Capacity 300 Sight Range 18 Robot Scan Range 16 Terrain Scan Range 20 Terrain Scan Density 10 ECM Strength 2 Jamming Range 14 Cloak Strength 4 Power Amplification 30 Additional Mass Support 9 Armor Coverage 400 Propulsion Shielding 66 Utility Shielding 33 Weapon Shielding 66 Evasion (%) 73 Targeting Accuracy 8 Melee Accuracy 8 Armor Integrity Analysis 30 Particle Charging 15 Offensive Hacking 38 Defensive Hacking 32 Authchip Count 1 Item Schematics ----------------- Disposable Heat Sink | -9/Materials | Scanalyzed Hcp. Battery | -9/Materials | Scanalyzed Imp. Ion Engine | -9/Materials | Scanalyzed Hacking Suite | -8/Materials | Hacked Beam Cannon | -8/Materials | Scanalyzed Propulsion Shielding | -8/Materials | Hacked System Shield | -8/Materials | Hacked Arm. Wheel | -8/Materials | Hacked Imp. Heat Sink | -7/Factory | Hacked Lgt. Deuterium Engine | -7/Factory | Scanalyzed Med. Armor Plating | -7/Factory | Scanalyzed Adv. Sensor Array | -6/Factory | Hacked Imp. Propulsion Shielding | -6/Factory | Hacked Combat Drone Bay | -6/Data Miner | Free Lgt. Regenerative Plating | -6/Data Miner | Free Enh. Flexi-carbon Leg | -6/Data Miner | Free Exp. Heat Sink | -6/Data Miner | Free Thunder Hammer | -6/Data Miner | Free Imp. Heavy Treads | -6/Data Miner | Free Imp. Cloaking Device | -6/Data Miner | Free HERF Cannon | -6/Data Miner | Free Adv. Cooling System | -6/Data Miner | Free Mic. Antimatter Reactor | -6/Data Miner | Free Hyp. Railgun | -6/Data Miner | Free Imp. Hacking Suite | -5/Factory | Hacked Imp. Cesium-ion Thruster | -5/Factory | Scanalyzed Lgt. Fission Core | -5/Factory | Scanalyzed Nuclear Pulse Thruster | -5/Factory | Scanalyzed Angular Momentum Engine | -5/Factory | Scanalyzed Imp. Medium Armor Plating | -4/Factory | Scanalyzed Imp. Diametric Drive | -4/Factory | Scanalyzed Quantum Rifle | -4/Factory | Hacked Hvy. Gauss Cannon | -4/Factory | Hacked Enh. Quantum Rifle | -4/Factory | Hacked Mic. Fission Core | -3/Research | Scanalyzed Robot Schematics ------------------ G-50 Soldier | -6/Factory | Hacked L-41 Fighter | -6/Data Miner | Free Y-54 Guardian | -6/Data Miner | Free B-60 Warrior | -6/Data Miner | Free T-07 Excavator | -4/Factory | Hacked Fabricated ------------ Imp. Hacking Suite | x1 | -5/Factory Repaired ---------- Beam Cannon | 7% | -9/Materials Arm. Wheel | 33% | -9/Materials Imp. Heat Sink | 35% | -9/Materials Imp. Weapon Shielding | 33% | -8/Materials Hvy. Ion Cannon | 25% | -7/Storage Enh. Nuclear Core | 19% | -7/Storage | Broken Plasma Cannon | 4% | -7/Storage Imp. Light Armor Plating | 15% | -6/Factory Cld. Deuterium Engine | 35% | -6/Factory Katana | 72% | -6/Factory Imp. Cesium-ion Thruster | 73% | -6/Factory Great Maul | 43% | -6/Factory Imp. Heat Sink | 35% | -5/Factory Angular Momentum Engine | 4% | -5/Factory Imp. Sensor Array | 4% | -5/Factory Imp. Transmission Jammer | 20% | -5/Factory Great Maul | 62% | -5/Factory Power Maul | 60% | -4/Factory Imp. Diametric Drive | 34% | -1/Access Alien Tech Used ----------------- Integrated Dissipator Subatomic Replicator Achievements -------------- Beloved Challenges ------------ None Game ------ Seed LaserPhasingCharger Manual? 0 Play Time 06:33:14 Cumulative 265.2 hours Start 2025.07.28 @ 15:30:08 End 2025.08.01 @ 15:28:26 Sessions 20 Manual Loads 0 Difficulty Rogue Special Mode None Game No. 241 Rogue 241 Adventurer 0 Explorer 0 Win Type - Total 1 Types 1/0/0/0/0/0/0/0/0/0 Lore% 64 Gallery% 62 Achievement% 48 Wizard Run 0 Options --------- Layout 2 ASCII 1 Keyboard 1 Movement Numpad Keybinds 0 Fullscreen 2 Font 32/TamsynBold Map View 50x44 Zoom Use 0% Tactical HUD 1 Map Filters NONE Filters NONE Steam 1 RUN: 2c45eb20-1b47-4284-ab0c-a4599f6966f4